{"text_format":"1","workbook":"xlsx","n_sheets":1,"sheets":["Лист1"],"not_rendered":{"charts":0,"images":0,"macros":1,"external_links":0,"defined_names":0,"comments":0,"pivot_tables":1},"unopened":[],"bounds":{"document_bytes":16777216,"sheet_cells":100000,"rows_first":2000,"rows_last":500,"rows_between":2000,"halvings":0,"cell_chars":16384,"cell_head_chars":4096},"cells_cut":0,"cells_raw":0,"read":"whole","date_system":"1900"}

{"sheet":"Лист1","index":0,"n_rows":26,"n_cols":27,"rows_kept":26,"cut":false,"hidden":false,"merged":[]}
[null,null,null,null,null,null,null,null,null,null,null,null,null,null,null,null,null,null,null,null,null,null,"Дата","Номер недели"," Наименование","     Цена"]
[null,null,null,null,null,null,null,null,null,null,null,null,null,null,null,null,null,null,null,null,null,null,"2017-01-01",{"$f":"WEEKNUM(W2)","v":1},"Консультация",200]
["Сумма по полю      Цена","Номер недели",null,null,null,null,null,null,null,null,null,null,null,null,null,null,null,null,null,null,null,null,"2017-10-10",{"$f":"WEEKNUM(W3)","v":41},"Консультация"]
[" Наименование",1,5,9,14,18,23,27,32,36,41,45,null,null,null,null,null,null,null,null,null,null,"2017-11-11",45,"Консультация"]
["Орошение",null,400,400,100,1000,2400,null,null,null,null,null,null,null,null,null,null,null,null,null,null,null,"2017-01-01",1,"Напыление",300]
["Напыление",700,300,500,300,900,300,null,null,null,null,null,null,null,null,null,null,null,null,null,null,null,"2017-02-02",5,"Напыление",300]
["Консультация",200,null,null,null,null,null,null,null,null,null,null,null,null,null,null,null,null,null,null,null,null,"2017-03-03",9,"Напыление",500]
["Общий итог",900,700,900,400,1900,2700,null,null,null,null,null,null,null,null,null,null,null,null,null,null,null,"2017-04-04",14,"Напыление",300]
[null,null,null,null,null,null,null,null,null,null,null,null,null,null,null,null,null,null,null,null,null,null,"2017-05-05",18,"Напыление",900]
[null,null,null,null,null,null,null,null,null,null,null,null,null,null,null,null,null,null,null,null,null,null,"2017-06-06",23,"Напыление",300]
[null,null,null,null,null,null,null,null,null,null,null,null,null,null,null,null,null,null,null,null,null,null,"2017-07-07",27,"Напыление"]
[null,null,null,null,null,null,null,null,null,null,null,null,null,null,null,null,null,null,null,null,null,null,"2017-08-08",32,"Напыление"]
[null,null,null,null,null,null,null,null,null,null,null,null,null,null,null,null,null,null,null,null,null,null,"2017-09-09",36,"Напыление",null,"30-00"]
[null,null,null,null,null,null,null,null,null,null,null,null,null,null,null,null,null,null,null,null,null,null,"2017-10-10",41,"Напыление"]
[null,null,null,null,null,null,null,null,null,null,null,null,null,null,null,null,null,null,null,null,null,null,"2017-11-11",45,"Напыление",null,"450-00"]
[null,null,null,null,null,null,null,null,null,null,null,null,null,null,null,null,null,null,null,null,null,null,"2017-01-01",1,"Напыление",400]
[null,null,null,null,null,null,null,null,null,null,null,null,null,null,null,null,null,null,null,null,null,null,"2017-02-02",5,"Орошение",400]
[null,null,null,null,null,null,null,null,null,null,null,null,null,null,null,null,null,null,null,null,null,null,"2017-03-03",9,"Орошение",400]
[null,null,null,null,null,null,null,null,null,null,null,null,null,null,null,null,null,null,null,null,null,null,"2017-04-04",14,"Орошение",100]
[null,null,null,null,null,null,null,null,null,null,null,null,null,null,null,null,null,null,null,null,null,null,"2017-05-05",18,"Орошение",1000]
[null,null,null,null,null,null,null,null,null,null,null,null,null,null,null,null,null,null,null,null,null,null,"2017-06-06",23,"Орошение",400]
[null,null,null,null,null,null,null,null,null,null,null,null,null,null,null,null,null,null,null,null,null,null,"2017-07-07",27,"Орошение"]
[null,null,null,null,null,null,null,null,null,null,null,null,null,null,null,null,null,null,null,null,null,null,"2017-06-06",23,"Орошение",2000]
[null,null,null,null,null,null,null,null,null,null,null,null,null,null,null,null,null,null,null,null,null,null,"2017-09-09",36,"Орошение"]
[null,null,null,null,null,null,null,null,null,null,null,null,null,null,null,null,null,null,null,null,null,null,"2017-10-10",41,"Орошение"]
[null,null,null,null,null,null,null,null,null,null,null,null,null,null,null,null,null,null,null,null,null,null,"2017-11-11",45,"Орошение"]